[Event "Titled Tuesday Blitz July 11 Early 2023"]
[White "Haitin, Ilja"]
[Black "Shubenkova, Veronika"]
[WhiteFideId "4501764"]
[BlackFideId "44124040"]
[WhiteElo "2382"]
[BlackElo "2542"]
[Result "0-1"]
[Round "6"]
[TimeControl "180+2"]
[Date "2023.07.11"]
[WhiteClock "0:00:00"]
[BlackClock "0:01:24"]
[Board "108"]

1. Nf3 {[%clk 0:03:00]}  d5 {[%clk 0:03:00]} 2. e3 {[%clk 0:02:57]}  e6 {[%clk 0:02:59]} 3. b3 {[%clk 0:02:55]}  f5 {[%clk 0:02:59]} 4. Bb2 {[%clk 0:02:53]}  Nf6 {[%clk 0:03:00]} 5. c4 {[%clk 0:02:51]}  c6 {[%clk 0:03:00]} 6. Nc3 {[%clk 0:02:49]}  Bd6 {[%clk 0:03:00]} 7. d3 {[%clk 0:02:50]}  O-O {[%clk 0:03:00]} 8. g3 {[%clk 0:02:47]}  Qe7 {[%clk 0:02:59]} 9. Bg2 {[%clk 0:02:48]}  Bc7 {[%clk 0:02:59]} 10. O-O {[%clk 0:02:48]}  Nbd7 {[%clk 0:02:58]} 11. Re1 {[%clk 0:02:45]}  e5 {[%clk 0:02:58]} 12. cxd5 {[%clk 0:02:44]}  cxd5 {[%clk 0:02:57]} 13. Nb5 {[%clk 0:02:44]}  Bb8 {[%clk 0:02:56]} 14. Ba3 {[%clk 0:02:43]}  Qe8 {[%clk 0:02:50]} 15. Bxf8 {[%clk 0:02:42]}  Nxf8 {[%clk 0:02:51]} 16. Nc3 {[%clk 0:02:26]}  e4 {[%clk 0:02:50]} 17. dxe4 {[%clk 0:02:22]}  fxe4 {[%clk 0:02:51]} 18. Nd4 {[%clk 0:02:14]}  Bg4 {[%clk 0:02:50]} 19. Qd2 {[%clk 0:02:10]}  Be5 {[%clk 0:02:49]} 20. h3 {[%clk 0:02:09]}  Bd7 {[%clk 0:02:47]} 21. Rac1 {[%clk 0:02:08]}  h5 {[%clk 0:02:45]} 22. Nce2 {[%clk 0:02:00]}  g5 {[%clk 0:02:41]} 23. f4 {[%clk 0:01:50]}  Bd6 {[%clk 0:02:26]} 24. fxg5 {[%clk 0:01:46]}  N6h7 {[%clk 0:02:26]} 25. h4 {[%clk 0:01:43]}  Ng6 {[%clk 0:02:25]} 26. Nf4 {[%clk 0:01:37]}  Ne5 {[%clk 0:02:24]} 27. Nxd5 {[%clk 0:01:35]}  Nd3 {[%clk 0:02:22]} 28. Nc7 {[%clk 0:01:15]}  Qe5 {[%clk 0:01:57]} 29. Nxa8 {[%clk 0:00:10]}  Qxg3 {[%clk 0:01:56]} 30. Qxd3 {[%clk 0:00:09]}  exd3 {[%clk 0:01:52]} 31. Red1 {[%clk 0:00:07]}  Qxe3+ {[%clk 0:01:49]} 32. Kh1 {[%clk 0:00:06]}  Qxd4 {[%clk 0:01:45]} 33. Rc4 {[%clk 0:00:07]}  Qe3 {[%clk 0:01:41]} 34. Bd5+ {[%clk 0:00:06]}  Kg7 {[%clk 0:01:37]} 35. Rcc1 {[%clk 0:00:02]}  Qe2 {[%clk 0:01:35]} 36. Bg2 {[%clk 0:00:01]}  Bh3 {[%clk 0:01:30]} 37. Rg1 {[%clk 0:00:00]}  Qe3 {[%clk 0:01:24]} 0-1


[Site "https://www.chess.com"]

[Event "Titled Tuesday Blitz July 11 Early 2023"]
[White "MAHanif"]
[Black "Sidletskyi, Ivan"]
[BlackFideId "14156024"]
[WhiteElo "2389"]
[BlackElo "2532"]
[Result "1/2-1/2"]
[Round "6"]
[TimeControl "180+2"]
[Date "2023.07.11"]
[WhiteClock "0:00:07"]
[BlackClock "0:00:00"]
[Board "109"]

1. d4 {[%clk 0:03:00]}  Nf6 {[%clk 0:02:58]} 2. Nf3 {[%clk 0:03:00]}  d5 {[%clk 0:02:57]} 3. g3 {[%clk 0:03:01]}  c5 {[%clk 0:02:55]} 4. Bg2 {[%clk 0:03:02]}  cxd4 {[%clk 0:02:54]} 5. Nxd4 {[%clk 0:03:02]}  e5 {[%clk 0:02:48]} 6. Nf3 {[%clk 0:03:02]}  Nc6 {[%clk 0:02:46]} 7. O-O {[%clk 0:03:02]}  Be6 {[%clk 0:02:45]} 8. Nbd2 {[%clk 0:03:01]}  Bc5 {[%clk 0:02:26]} 9. c3 {[%clk 0:02:55]}  O-O {[%clk 0:02:25]} 10. Qc2 {[%clk 0:02:44]}  h6 {[%clk 0:02:23]} 11. e4 {[%clk 0:02:44]}  d4 {[%clk 0:01:57]} 12. cxd4 {[%clk 0:02:39]}  Bxd4 {[%clk 0:01:58]} 13. Nb3 {[%clk 0:02:34]}  Rc8 {[%clk 0:01:45]} 14. Nbxd4 {[%clk 0:02:07]}  Nxd4 {[%clk 0:01:42]} 15. Qa4 {[%clk 0:01:54]}  Bc4 {[%clk 0:01:21]} 16. Re1 {[%clk 0:01:48]}  b5 {[%clk 0:01:16]} 17. Qxa7 {[%clk 0:01:38]}  Ra8 {[%clk 0:00:53]} 18. Qc5 {[%clk 0:01:35]}  Nd7 {[%clk 0:00:53]} 19. Qd6 {[%clk 0:01:34]}  Nc2 {[%clk 0:00:48]} 20. Bd2 {[%clk 0:01:21]}  Nxa1 {[%clk 0:00:47]} 21. Rxa1 {[%clk 0:01:20]}  Rxa2 {[%clk 0:00:45]} 22. Rxa2 {[%clk 0:01:13]}  Bxa2 {[%clk 0:00:46]} 23. Bc3 {[%clk 0:01:10]}  Nf6 {[%clk 0:00:41]} 24. Qxe5 {[%clk 0:01:02]}  Qd1+ {[%clk 0:00:35]} 25. Ne1 {[%clk 0:01:02]}  Bc4 {[%clk 0:00:28]} 26. Qd4 {[%clk 0:00:56]}  Rd8 {[%clk 0:00:25]} 27. Qxd1 {[%clk 0:00:55]}  Rxd1 {[%clk 0:00:26]} 28. f3 {[%clk 0:00:54]}  Nd7 {[%clk 0:00:24]} 29. Kf2 {[%clk 0:00:53]}  Nc5 {[%clk 0:00:24]} 30. Bf1 {[%clk 0:00:34]}  f6 {[%clk 0:00:20]} 31. Be2 {[%clk 0:00:24]}  Rd7 {[%clk 0:00:19]} 32. Nc2 {[%clk 0:00:20]}  Bxe2 {[%clk 0:00:12]} 33. Kxe2 {[%clk 0:00:20]}  Nb3 {[%clk 0:00:13]} 34. Ne3 {[%clk 0:00:19]}  Nd4+ {[%clk 0:00:13]} 35. Kf2 {[%clk 0:00:16]}  Ne6 {[%clk 0:00:14]} 36. Nd5 {[%clk 0:00:16]}  Nc7 {[%clk 0:00:14]} 37. Nb4 {[%clk 0:00:15]}  Kf7 {[%clk 0:00:14]} 38. Ke3 {[%clk 0:00:15]}  Ke6 {[%clk 0:00:15]} 39. Nc6 {[%clk 0:00:15]}  Rd1 {[%clk 0:00:14]} 40. Nd4+ {[%clk 0:00:15]}  Kd7 {[%clk 0:00:15]} 41. Ba5 {[%clk 0:00:14]}  Ne6 {[%clk 0:00:11]} 42. Nxb5 {[%clk 0:00:13]}  Rb1 {[%clk 0:00:12]} 43. Bc3 {[%clk 0:00:12]}  Rh1 {[%clk 0:00:12]} 44. h4 {[%clk 0:00:12]}  Rg1 {[%clk 0:00:12]} 45. Kf2 {[%clk 0:00:12]}  Rd1 {[%clk 0:00:13]} 46. Na3 {[%clk 0:00:11]}  Kc6 {[%clk 0:00:11]} 47. Nc2 {[%clk 0:00:10]}  Nc5 {[%clk 0:00:10]} 48. Ne3 {[%clk 0:00:10]}  Rd7 {[%clk 0:00:09]} 49. Nf5 {[%clk 0:00:10]}  Kb5 {[%clk 0:00:07]} 50. Ke3 {[%clk 0:00:10]}  Kc4 {[%clk 0:00:08]} 51. Ke2 {[%clk 0:00:09]}  Kb3 {[%clk 0:00:07]} 52. Ne3 {[%clk 0:00:09]}  Nd3 {[%clk 0:00:07]} 53. Nd5 {[%clk 0:00:08]}  Nxb2 {[%clk 0:00:06]} 54. Bxb2 {[%clk 0:00:09]}  Kxb2 {[%clk 0:00:07]} 55. Ke3 {[%clk 0:00:09]}  Kb3 {[%clk 0:00:08]} 56. Kd4 {[%clk 0:00:09]}  Kc2 {[%clk 0:00:07]} 57. f4 {[%clk 0:00:09]}  Kd2 {[%clk 0:00:07]} 58. g4 {[%clk 0:00:10]}  Ke2 {[%clk 0:00:07]} 59. g5 {[%clk 0:00:10]}  fxg5 {[%clk 0:00:04]} 60. fxg5 {[%clk 0:00:10]}  hxg5 {[%clk 0:00:05]} 61. hxg5 {[%clk 0:00:10]}  Kf3 {[%clk 0:00:06]} 62. Ke5 {[%clk 0:00:11]}  Kg4 {[%clk 0:00:06]} 63. g6 {[%clk 0:00:11]}  Kg5 {[%clk 0:00:06]} 64. Nf4 {[%clk 0:00:11]}  Re7+ {[%clk 0:00:06]} 65. Ne6+ {[%clk 0:00:10]}  Kh6 {[%clk 0:00:03]} 66. Kd6 {[%clk 0:00:11]}  Re8 {[%clk 0:00:03]} 67. Kd7 {[%clk 0:00:10]}  Ra8 {[%clk 0:00:02]} 68. Nf4 {[%clk 0:00:10]}  Ra4 {[%clk 0:00:02]} 69. Nd5 {[%clk 0:00:05]}  Rxe4 {[%clk 0:00:02]} 70. Kd6 {[%clk 0:00:06]}  Rd4 {[%clk 0:00:03]} 71. Ke5 {[%clk 0:00:06]}  Rxd5+ {[%clk 0:00:03]} 72. Kxd5 {[%clk 0:00:06]}  Kxg6 {[%clk 0:00:04]} 73. Ke4 {[%clk 0:00:07]}  Kh5 {[%clk 0:00:05]} 74. Kf3 {[%clk 0:00:07]}  Kh4 {[%clk 0:00:05]} 75. Kg2 {[%clk 0:00:08]}  Kg4 {[%clk 0:00:06]} 76. Kh2 {[%clk 0:00:08]}  g6 {[%clk 0:00:06]} 77. Kg2 {[%clk 0:00:08]}  g5 {[%clk 0:00:07]} 78. Kg1 {[%clk 0:00:07]}  Kg3 {[%clk 0:00:07]} 79. Kh1 {[%clk 0:00:07]}  Kf2 {[%clk 0:00:07]} 80. Kh2 {[%clk 0:00:07]}  g4 {[%clk 0:00:08]} 81. Kh1 {[%clk 0:00:08]}  Kf3 {[%clk 0:00:06]} 82. Kh2 {[%clk 0:00:07]}  Kf2 {[%clk 0:00:00]} 83. Kh1 {[%clk 0:00:07]} 1/2-1/2


[Site "https://www.chess.com"]

[Event "Titled Tuesday Blitz July 11 Early 2023"]
[White "Yurovskykh, Oleksandr"]
[Black "Thiel, Thomas"]
[WhiteFideId "14134020"]
[BlackFideId "4615964"]
[WhiteElo "2530"]
[BlackElo "2232"]
[Result "1-0"]
[Round "6"]
[TimeControl "180+2"]
[Date "2023.07.11"]
[WhiteClock "0:00:10"]
[BlackClock "0:00:00"]
[Board "110"]

1. d4 {[%clk 0:02:55]}  d5 {[%clk 0:02:59]} 2. Bf4 {[%clk 0:02:53]}  Nf6 {[%clk 0:02:54]} 3. e3 {[%clk 0:02:53]}  c5 {[%clk 0:02:54]} 4. c3 {[%clk 0:02:53]}  Qb6 {[%clk 0:02:53]} 5. Qb3 {[%clk 0:02:52]}  c4 {[%clk 0:02:53]} 6. Qc2 {[%clk 0:02:52]}  Nc6 {[%clk 0:02:51]} 7. Nd2 {[%clk 0:02:52]}  g6 {[%clk 0:02:51]} 8. e4 {[%clk 0:02:52]}  Nxe4 {[%clk 0:02:51]} 9. Nxe4 {[%clk 0:02:51]}  dxe4 {[%clk 0:02:51]} 10. Bxc4 {[%clk 0:02:51]}  Bg7 {[%clk 0:02:49]} 11. Qb3 {[%clk 0:02:48]}  O-O {[%clk 0:02:43]} 12. Qxb6 {[%clk 0:02:47]}  axb6 {[%clk 0:02:41]} 13. Ne2 {[%clk 0:02:47]}  e5 {[%clk 0:02:40]} 14. dxe5 {[%clk 0:02:43]}  Nxe5 {[%clk 0:02:39]} 15. Bxe5 {[%clk 0:02:38]}  Bxe5 {[%clk 0:02:40]} 16. O-O {[%clk 0:02:35]}  Bg4 {[%clk 0:02:34]} 17. Ng3 {[%clk 0:02:30]}  Rae8 {[%clk 0:01:40]} 18. Nxe4 {[%clk 0:02:19]}  Bxh2+ {[%clk 0:01:37]} 19. Kxh2 {[%clk 0:02:20]}  Rxe4 {[%clk 0:01:36]} 20. Bd5 {[%clk 0:02:17]}  Re5 {[%clk 0:01:35]} 21. Bxb7 {[%clk 0:02:13]}  Rb8 {[%clk 0:01:30]} 22. Bc6 {[%clk 0:02:01]}  Rc8 {[%clk 0:01:19]} 23. Ba4 {[%clk 0:01:54]}  Be6 {[%clk 0:00:52]} 24. Bd1 {[%clk 0:01:31]}  Bc4 {[%clk 0:00:48]} 25. Rh1 {[%clk 0:01:21]}  Rd8 {[%clk 0:00:47]} 26. Bf3 {[%clk 0:01:19]}  Rd2 {[%clk 0:00:45]} 27. b3 {[%clk 0:01:17]}  Be6 {[%clk 0:00:43]} 28. Kg3 {[%clk 0:01:10]}  Rg5+ {[%clk 0:00:36]} 29. Kf4 {[%clk 0:01:09]}  Ra5 {[%clk 0:00:32]} 30. Ke3 {[%clk 0:00:29]}  Raxa2 {[%clk 0:00:27]} 31. Rxa2 {[%clk 0:00:28]}  Rxa2 {[%clk 0:00:27]} 32. Rb1 {[%clk 0:00:27]}  Ra3 {[%clk 0:00:26]} 33. Bd1 {[%clk 0:00:27]}  Bf5 {[%clk 0:00:19]} 34. Rb2 {[%clk 0:00:26]}  Ra1 {[%clk 0:00:19]} 35. Bf3 {[%clk 0:00:25]}  Rc1 {[%clk 0:00:16]} 36. c4 {[%clk 0:00:24]}  Rc3+ {[%clk 0:00:15]} 37. Kf4 {[%clk 0:00:20]}  Kg7 {[%clk 0:00:12]} 38. Be4 {[%clk 0:00:17]}  Be6 {[%clk 0:00:09]} 39. g4 {[%clk 0:00:16]}  h6 {[%clk 0:00:08]} 40. f3 {[%clk 0:00:16]}  Kf6 {[%clk 0:00:00]} 41. Bd5 {[%clk 0:00:10]} 1-0


[Site "https://www.chess.com"]

[Event "Titled Tuesday Blitz July 11 Early 2023"]
[White "Ishowmoves57"]
[Black "Chen, Max"]
[BlackFideId "2622440"]
[WhiteElo "2148"]
[BlackElo "2527"]
[Result "1-0"]
[Round "6"]
[TimeControl "180+2"]
[Date "2023.07.11"]
[WhiteClock "0:00:16"]
[BlackClock "0:00:00"]
[Board "112"]

1. e4 {[%clk 0:03:00]}  c6 {[%clk 0:02:59]} 2. d4 {[%clk 0:02:54]}  d5 {[%clk 0:02:59]} 3. Nc3 {[%clk 0:02:51]}  dxe4 {[%clk 0:02:58]} 4. Nxe4 {[%clk 0:02:52]}  Nf6 {[%clk 0:02:58]} 5. Nxf6+ {[%clk 0:02:52]}  exf6 {[%clk 0:02:59]} 6. Nf3 {[%clk 0:02:49]}  Bd6 {[%clk 0:02:59]} 7. Bd3 {[%clk 0:02:49]}  O-O {[%clk 0:02:59]} 8. O-O {[%clk 0:02:50]}  Nd7 {[%clk 0:02:56]} 9. c3 {[%clk 0:02:40]}  Re8 {[%clk 0:02:56]} 10. Qc2 {[%clk 0:02:39]}  Nf8 {[%clk 0:02:56]} 11. Be3 {[%clk 0:02:39]}  Qc7 {[%clk 0:02:51]} 12. h3 {[%clk 0:02:37]}  h5 {[%clk 0:02:49]} 13. Nd2 {[%clk 0:02:26]}  Ne6 {[%clk 0:02:47]} 14. Ne4 {[%clk 0:02:26]}  Nf4 {[%clk 0:02:35]} 15. Nxd6 {[%clk 0:02:24]}  Qxd6 {[%clk 0:02:36]} 16. Bxf4 {[%clk 0:02:11]}  Qxf4 {[%clk 0:02:37]} 17. Rfe1 {[%clk 0:02:08]}  Be6 {[%clk 0:02:32]} 18. a3 {[%clk 0:02:01]}  Bd5 {[%clk 0:02:32]} 19. Qc1 {[%clk 0:01:41]}  Rxe1+ {[%clk 0:02:23]} 20. Qxe1 {[%clk 0:01:41]}  Qg5 {[%clk 0:02:24]} 21. Bf1 {[%clk 0:01:30]}  f5 {[%clk 0:02:06]} 22. Qe5 {[%clk 0:01:24]}  Qd2 {[%clk 0:01:54]} 23. Qe2 {[%clk 0:01:22]}  Qg5 {[%clk 0:01:35]} 24. Qe5 {[%clk 0:01:18]}  Qd2 {[%clk 0:01:33]} 25. Qe2 {[%clk 0:01:13]}  Qxe2 {[%clk 0:01:33]} 26. Bxe2 {[%clk 0:01:13]}  h4 {[%clk 0:01:32]} 27. Bd3 {[%clk 0:01:08]}  g6 {[%clk 0:01:32]} 28. Re1 {[%clk 0:01:07]}  Be6 {[%clk 0:01:28]} 29. f4 {[%clk 0:01:01]}  Rd8 {[%clk 0:01:28]} 30. b4 {[%clk 0:00:57]}  b6 {[%clk 0:01:26]} 31. Be2 {[%clk 0:00:53]}  c5 {[%clk 0:01:26]} 32. dxc5 {[%clk 0:00:50]}  bxc5 {[%clk 0:01:27]} 33. bxc5 {[%clk 0:00:51]}  Rc8 {[%clk 0:01:27]} 34. Rb1 {[%clk 0:00:37]}  Rxc5 {[%clk 0:01:26]} 35. c4 {[%clk 0:00:36]}  a5 {[%clk 0:01:07]} 36. Rb5 {[%clk 0:00:33]}  Rc7 {[%clk 0:00:54]} 37. c5 {[%clk 0:00:26]}  a4 {[%clk 0:00:54]} 38. Bf3 {[%clk 0:00:21]}  Kf8 {[%clk 0:00:50]} 39. c6 {[%clk 0:00:20]}  Ke7 {[%clk 0:00:50]} 40. Rb7 {[%clk 0:00:19]}  Kd6 {[%clk 0:00:49]} 41. Rb4 {[%clk 0:00:19]}  Bb3 {[%clk 0:00:46]} 42. Rd4+ {[%clk 0:00:18]}  Kc5 {[%clk 0:00:41]} 43. Rd7 {[%clk 0:00:18]}  Kb6 {[%clk 0:00:41]} 44. Rd4 {[%clk 0:00:18]}  f6 {[%clk 0:00:34]} 45. Rb4+ {[%clk 0:00:17]}  Kc5 {[%clk 0:00:34]} 46. Rb7 {[%clk 0:00:17]}  Kd6 {[%clk 0:00:34]} 47. Rb4 {[%clk 0:00:17]}  g5 {[%clk 0:00:34]} 48. fxg5 {[%clk 0:00:17]}  fxg5 {[%clk 0:00:34]} 49. Kf2 {[%clk 0:00:17]}  Rf7 {[%clk 0:00:29]} 50. Rd4+ {[%clk 0:00:16]}  Kc5 {[%clk 0:00:29]} 51. Rd7 {[%clk 0:00:16]}  Rf8 {[%clk 0:00:17]} 52. c7 {[%clk 0:00:17]}  Bg8 {[%clk 0:00:15]} 53. Rd8 {[%clk 0:00:17]}  g4 {[%clk 0:00:09]} 54. Rxf8 {[%clk 0:00:16]}  g3+ {[%clk 0:00:09]} 55. Ke3 {[%clk 0:00:16]}  f4+ {[%clk 0:00:09]} 56. Kxf4 {[%clk 0:00:17]}  Bd5 {[%clk 0:00:09]} 57. c8=Q+ {[%clk 0:00:17]}  Kd4 {[%clk 0:00:10]} 58. Qd7 {[%clk 0:00:17]}  Kc3 {[%clk 0:00:10]} 59. Rc8+ {[%clk 0:00:17]}  Kb2 {[%clk 0:00:11]} 60. Qxd5 {[%clk 0:00:16]}  Ka1 {[%clk 0:00:11]} 61. Qd4+ {[%clk 0:00:16]}  Ka2 {[%clk 0:00:00]} 62. Qd2+ {[%clk 0:00:16]} 1-0


[Site "https://www.chess.com"]

[Event "Titled Tuesday Blitz July 11 Early 2023"]
[White "Ahmad, Khagan"]
[Black "Mazurkiewicz, Michal"]
[WhiteFideId "13431552"]
[BlackFideId "1124943"]
[WhiteElo "2625"]
[BlackElo "2422"]
[Result "1-0"]
[Round "6"]
[TimeControl "180+2"]
[Date "2023.07.11"]
[WhiteClock "0:00:20"]
[BlackClock "0:00:00"]
[Board "113"]

1. Nf3 {[%clk 0:02:55]}  Nf6 {[%clk 0:02:58]} 2. c4 {[%clk 0:02:53]}  g6 {[%clk 0:02:58]} 3. Nc3 {[%clk 0:02:46]}  Bg7 {[%clk 0:02:58]} 4. g3 {[%clk 0:02:44]}  O-O {[%clk 0:02:58]} 5. Bg2 {[%clk 0:02:44]}  d6 {[%clk 0:02:58]} 6. O-O {[%clk 0:02:44]}  c5 {[%clk 0:02:59]} 7. d4 {[%clk 0:02:36]}  cxd4 {[%clk 0:02:58]} 8. Nxd4 {[%clk 0:02:37]}  Qa5 {[%clk 0:02:59]} 9. Rb1 {[%clk 0:02:32]}  Nc6 {[%clk 0:02:58]} 10. Nxc6 {[%clk 0:02:16]}  bxc6 {[%clk 0:02:59]} 11. b4 {[%clk 0:02:16]}  Qh5 {[%clk 0:02:57]} 12. h4 {[%clk 0:02:06]}  Bf5 {[%clk 0:02:47]} 13. Bxc6 {[%clk 0:02:03]}  Bxb1 {[%clk 0:02:44]} 14. Bxa8 {[%clk 0:02:01]}  Rxa8 {[%clk 0:02:32]} 15. Nxb1 {[%clk 0:02:00]}  Rc8 {[%clk 0:02:05]} 16. Qd3 {[%clk 0:01:56]}  Ng4 {[%clk 0:01:55]} 17. Bf4 {[%clk 0:01:44]}  Ne5 {[%clk 0:01:51]} 18. Bxe5 {[%clk 0:01:43]}  Qxe5 {[%clk 0:01:49]} 19. Nd2 {[%clk 0:01:29]}  Qc3 {[%clk 0:01:42]} 20. Rb1 {[%clk 0:01:25]}  h5 {[%clk 0:01:36]} 21. Kg2 {[%clk 0:01:05]}  Rb8 {[%clk 0:01:20]} 22. Qxc3 {[%clk 0:00:59]}  Bxc3 {[%clk 0:01:19]} 23. Ne4 {[%clk 0:01:00]}  Bd4 {[%clk 0:00:40]} 24. e3 {[%clk 0:00:57]}  Be5 {[%clk 0:00:34]} 25. a3 {[%clk 0:00:50]}  Rc8 {[%clk 0:00:34]} 26. c5 {[%clk 0:00:46]}  f5 {[%clk 0:00:33]} 27. Ng5 {[%clk 0:00:38]}  dxc5 {[%clk 0:00:33]} 28. bxc5 {[%clk 0:00:37]}  Rxc5 {[%clk 0:00:34]} 29. Rb7 {[%clk 0:00:35]}  Bd6 {[%clk 0:00:16]} 30. Rxa7 {[%clk 0:00:33]}  Rc3 {[%clk 0:00:16]} 31. a4 {[%clk 0:00:32]}  Ra3 {[%clk 0:00:16]} 32. a5 {[%clk 0:00:32]}  Ra2 {[%clk 0:00:15]} 33. a6 {[%clk 0:00:27]}  Kg7 {[%clk 0:00:16]} 34. Ra8 {[%clk 0:00:23]}  Kf6 {[%clk 0:00:16]} 35. Rf8+ {[%clk 0:00:19]}  Kg7 {[%clk 0:00:03]} 36. Ne6+ {[%clk 0:00:19]}  Kh7 {[%clk 0:00:00]} 37. Ra8 {[%clk 0:00:20]} 1-0


[Site "https://www.chess.com"]

[Event "Titled Tuesday Blitz July 11 Early 2023"]
[White "Nikologorsky, Matfei"]
[Black "Fiorito, Joaquin"]
[WhiteFideId "24102474"]
[BlackFideId "180173"]
[WhiteElo "2421"]
[BlackElo "2614"]
[Result "0-1"]
[Round "6"]
[TimeControl "180+2"]
[Date "2023.07.11"]
[WhiteClock "0:00:02"]
[BlackClock "0:00:18"]
[Board "114"]

1. e4 {[%clk 0:02:42]}  c5 {[%clk 0:03:00]} 2. Nf3 {[%clk 0:02:42]}  d6 {[%clk 0:02:59]} 3. d4 {[%clk 0:02:43]}  cxd4 {[%clk 0:03:00]} 4. Nxd4 {[%clk 0:02:43]}  Nf6 {[%clk 0:03:01]} 5. Nc3 {[%clk 0:02:44]}  a6 {[%clk 0:03:01]} 6. h3 {[%clk 0:02:44]}  h5 {[%clk 0:03:01]} 7. Bg5 {[%clk 0:02:41]}  e5 {[%clk 0:03:01]} 8. Nde2 {[%clk 0:02:37]}  Be7 {[%clk 0:02:59]} 9. Nc1 {[%clk 0:02:30]}  Be6 {[%clk 0:02:57]} 10. Nb3 {[%clk 0:02:26]}  Nbd7 {[%clk 0:02:54]} 11. Be2 {[%clk 0:02:26]}  Rc8 {[%clk 0:02:48]} 12. O-O {[%clk 0:02:14]}  b5 {[%clk 0:02:43]} 13. a3 {[%clk 0:01:56]}  Qc7 {[%clk 0:02:19]} 14. Qe1 {[%clk 0:01:52]}  O-O {[%clk 0:02:11]} 15. Rd1 {[%clk 0:01:49]}  Rfe8 {[%clk 0:02:08]} 16. Kh1 {[%clk 0:01:46]}  g6 {[%clk 0:01:59]} 17. f4 {[%clk 0:01:40]}  exf4 {[%clk 0:01:54]} 18. Nd4 {[%clk 0:01:36]}  Ne5 {[%clk 0:01:44]} 19. Rxf4 {[%clk 0:01:19]}  Nh7 {[%clk 0:01:44]} 20. Bxe7 {[%clk 0:01:18]}  Qxe7 {[%clk 0:01:44]} 21. Nxe6 {[%clk 0:01:10]}  fxe6 {[%clk 0:01:45]} 22. Qd2 {[%clk 0:01:07]}  Rcd8 {[%clk 0:01:44]} 23. Qe3 {[%clk 0:00:57]}  Kg7 {[%clk 0:01:41]} 24. Rff1 {[%clk 0:00:49]}  Qg5 {[%clk 0:01:38]} 25. Qa7+ {[%clk 0:00:47]}  Rd7 {[%clk 0:01:33]} 26. Qxa6 {[%clk 0:00:48]}  Nf6 {[%clk 0:01:27]} 27. Rxd6 {[%clk 0:00:45]}  Rde7 {[%clk 0:01:27]} 28. Qxb5 {[%clk 0:00:43]}  Rh8 {[%clk 0:01:24]} 29. Rb6 {[%clk 0:00:33]}  Rf8 {[%clk 0:00:56]} 30. Rb7 {[%clk 0:00:32]}  Rxb7 {[%clk 0:00:49]} 31. Qxb7+ {[%clk 0:00:32]}  Rf7 {[%clk 0:00:50]} 32. Qb5 {[%clk 0:00:31]}  Qg3 {[%clk 0:00:48]} 33. a4 {[%clk 0:00:22]}  Rc7 {[%clk 0:00:47]} 34. Qb6 {[%clk 0:00:18]}  Rc6 {[%clk 0:00:44]} 35. Qf2 {[%clk 0:00:17]}  Qg5 {[%clk 0:00:31]} 36. Qf4 {[%clk 0:00:17]}  Qxf4 {[%clk 0:00:30]} 37. Rxf4 {[%clk 0:00:18]}  Nfd7 {[%clk 0:00:26]} 38. Rf1 {[%clk 0:00:17]}  Rb6 {[%clk 0:00:26]} 39. b3 {[%clk 0:00:17]}  Rc6 {[%clk 0:00:25]} 40. Nb5 {[%clk 0:00:16]}  Rxc2 {[%clk 0:00:25]} 41. Bf3 {[%clk 0:00:16]}  Nc5 {[%clk 0:00:25]} 42. Nd4 {[%clk 0:00:14]}  Rd2 {[%clk 0:00:24]} 43. Rc1 {[%clk 0:00:13]}  Ncd3 {[%clk 0:00:22]} 44. Rc7+ {[%clk 0:00:13]}  Kf6 {[%clk 0:00:22]} 45. Nb5 {[%clk 0:00:12]}  Nf2+ {[%clk 0:00:18]} 46. Kg1 {[%clk 0:00:12]}  Nxh3+ {[%clk 0:00:17]} 47. gxh3 {[%clk 0:00:12]}  Nxf3+ {[%clk 0:00:18]} 48. Kf1 {[%clk 0:00:13]}  g5 {[%clk 0:00:17]} 49. a5 {[%clk 0:00:12]}  g4 {[%clk 0:00:18]} 50. hxg4 {[%clk 0:00:12]}  hxg4 {[%clk 0:00:19]} 51. Rc3 {[%clk 0:00:12]}  Ra2 {[%clk 0:00:17]} 52. b4 {[%clk 0:00:12]}  Kg5 {[%clk 0:00:17]} 53. Nd6 {[%clk 0:00:11]}  Kf4 {[%clk 0:00:17]} 54. Nc4 {[%clk 0:00:08]}  g3 {[%clk 0:00:15]} 55. Rxf3+ {[%clk 0:00:06]}  Kxf3 {[%clk 0:00:16]} 56. Ne5+ {[%clk 0:00:06]}  Kxe4 {[%clk 0:00:16]} 57. Ng4 {[%clk 0:00:06]}  Kf4 {[%clk 0:00:16]} 58. Nf6 {[%clk 0:00:06]}  Kf3 {[%clk 0:00:17]} 59. Ke1 {[%clk 0:00:04]}  g2 {[%clk 0:00:17]} 60. b5 {[%clk 0:00:02]}  g1=Q# {[%clk 0:00:18]} 0-1


[Site "https://www.chess.com"]